lending/lending_fUSD_20260222
["ID","MTS","AMOUNT","RATE_DAILY","PERIOD"]
[406316446,1771728640256,-35111.44291665,0.00033477,2]
[406316465,1771728640414,-124132.84134792,0.00033477,2]
[406316747,1771728643078,-12936.27567998,0.00033477,2]
[406316749,1771728643089,-5023.30581259,0.00033477,2]
[406317014,1771728645743,-614.52464211,0.00033477,2]
[406317033,1771728646010,-921.89227444,0.00033477,2]
[406317297,1771729538823,-295.12,0.000151,2]
[406317298,1771729538849,-4.88,0.000151,2]
[406317299,1771729538911,-270.12,0.000151,2]
[406317321,1771729831953,-276.0,0.00015163,2]
[406317322,1771729831963,-151.0,0.00015163,2]
[406317323,1771729831973,-151.0,0.00015163,2]
[406317324,1771729831983,-151.0,0.00015163,2]
[406317325,1771729831992,-217.35542213,0.00015163,2]
[406317326,1771729832001,-1066.42812366,0.00015171,2]
[406317327,1771729832014,-133.57187634,0.00015171,2]
[406317328,1771729832023,-164.55971867,0.00015172,2]
[406317329,1771729832034,-532.34240428,0.00015172,2]
[406317330,1771729832046,-503.09787705,0.00015172,2]
[406317331,1771729832055,-300.0,0.00015172,2]
[406317332,1771729832065,-300.0,0.00015172,2]
[406317333,1771729832074,-300.0,0.00015172,2]
[406317334,1771729832083,-501.05532582,0.00015173,2]
[406317335,1771729832092,-500.84388689,0.00015173,2]
[406317336,1771729832101,-500.30625431,0.00015173,2]
[406317337,1771729832110,-501.95334754,0.00015173,2]
[406317338,1771729832119,-500.31429558,0.00015173,2]
[406317340,1771729832128,-164.69154578,0.00015173,2]
[406317342,1771729832137,-500.70179018,0.00015173,2]
[406317344,1771729832146,-232.94540586,0.00015173,2]
[406317346,1771729832157,-267.40932615,0.00015173,2]
[406317348,1771729832166,-293.91987253,0.00015173,2]
[406317352,1771729832189,-206.48976748,0.00015173,2]
[406317354,1771729832198,-512.36453981,0.00015173,2]
[406317356,1771729832207,-166.86938504,0.00015173,2]
[406317358,1771729832217,-504.52292806,0.00015173,2]
[406317360,1771729832226,-244.77410291,0.00015173,2]
[406317362,1771729832235,-561.36297042,0.0001661,2]
[406317364,1771729832245,-1621.0,0.00016685,2]
[406317366,1771729832258,-250.0,0.00016688,2]
[406317369,1771729832267,-342.59,0.00023642,8]
[406317372,1771729832276,-184.84,0.00024297,2]
[406317375,1771729832284,-624.05,0.00025616,2]
[406317378,1771729832294,-624.05,0.00025953,2]
[406317379,1771729832302,-173.94,0.00026079,2]
[406317381,1771729832311,-624.05,0.0002629,2]
[406317383,1771729832320,-1401.18,0.0002629,10]
[406317385,1771729832329,-200.0,0.00026441,13]
[406317387,1771729832338,-177.0,0.00026482,30]
[406317389,1771729832347,-624.05,0.00026627,2]
[406317391,1771729832356,-624.05,0.00026965,2]
[406317393,1771729832365,-624.05,0.00027302,2]
[406317395,1771729832374,-624.05,0.00027639,2]
[406317397,1771729832383,-624.05,0.00027976,2]
[406317399,1771729832396,-624.05,0.00028313,2]
[406317401,1771729832406,-624.05,0.0002865,2]
[406317403,1771729832414,-624.05,0.00028987,2]
[406317405,1771729832423,-175.87,0.00029203,2]
[406317407,1771729832432,-200.0,0.0002924,20]
[406317409,1771729832441,-624.05,0.00029324,2]
[406317411,1771729832450,-624.05,0.00029661,2]
[406317413,1771729832459,-1220.04,0.0002981,2]
[406317414,1771729832468,-3045.54,0.00029812,2]
[406317415,1771729832476,-1000.0,0.00029985,2]
[406317416,1771729832485,-624.05,0.00029998,2]
[406317417,1771729832493,-1254.66,0.00030261,120]
[406317418,1771729832501,-624.05,0.00030335,2]
[406317419,1771729832510,-624.05,0.00030672,2]
[406317420,1771729832518,-624.05,0.00031009,2]
[406317421,1771729832527,-1011.25289018,0.000312,2]
[406317422,1771729832535,-624.05,0.00031346,2]
[406317423,1771729832544,-624.05,0.00031684,2]
[406317424,1771729832553,-500.0,0.00031747,2]
[406317425,1771729832561,-500.0,0.00031802,2]
[406317426,1771729832569,-500.0,0.00031808,2]
[406317427,1771729832578,-500.0,0.00031808,2]
[406317428,1771729832586,-174.55382438,0.00031808,2]
[406317429,1771729832761,-500.0,0.00031808,2]
[406317430,1771729832771,-150.0,0.00031808,2]
[406317431,1771729832780,-150.0,0.00031808,2]
[406317432,1771729832789,-500.0,0.00031857,2]
[406317433,1771729832799,-500.0,0.00031863,2]
[406317434,1771729832808,-500.0,0.00031863,2]
[406317435,1771729832818,-500.0,0.00031863,2]
[406317436,1771729832828,-500.0,0.00031911,2]
[406317437,1771729832837,-500.0,0.00031918,2]
[406317438,1771729832847,-500.0,0.00031918,2]
[406317439,1771729832856,-500.0,0.00031918,2]
[406317440,1771729832865,-500.0,0.00031966,2]
[406317441,1771729832874,-500.0,0.00031972,2]
[406317442,1771729832883,-500.0,0.00031972,2]
[406317443,1771729832893,-500.0,0.00031972,2]
[406317444,1771729832902,-2920.1991786,0.00032,3]
[406317445,1771729832911,-624.05,0.00032021,2]
[406317446,1771729832920,-500.0,0.00032021,2]
[406317447,1771729832930,-500.0,0.00032027,2]
[406317448,1771729832939,-500.0,0.00032027,2]
[406317449,1771729832948,-500.0,0.00032027,2]
[406317450,1771729832958,-200.0,0.00032038,31]
[406317451,1771729832967,-500.0,0.00032076,2]
[406317452,1771729832976,-5000.0,0.00032082,2]
[406317453,1771729832985,-500.0,0.00032082,2]
[406317454,1771729832995,-500.0,0.00032082,2]
[406317455,1771729833004,-500.0,0.00032082,2]
[406317456,1771729833014,-500.0,0.00032131,2]
[406317457,1771729833024,-458.70315985,0.00032137,2]
[406317458,1771729833033,-500.0,0.00032137,2]
[406317459,1771729833043,-500.0,0.00032137,2]
[406317460,1771729833052,-35.57179574,0.00032185,2]
[406317461,1771729833065,-464.42820426,0.00032185,2]
[406317462,1771729833074,-57.61970563,0.00032192,2]
[406317463,1771729833086,-442.38029437,0.00032192,2]
[406317464,1771729833095,-500.0,0.00032192,2]
[406317465,1771729833105,-338.98039862,0.00032239,2]
[406317466,1771729833121,-274.70893369,0.00032239,2]
[406317467,1771729833130,-500.0,0.0003224,2]
[406317468,1771729833141,-200.0,0.0003224,2]
[406317469,1771729833151,-500.0,0.00032246,2]
[406317470,1771729833160,-153.95137634,0.00032246,2]
[406317471,1771729833170,-500.0,0.00032295,2]
[406317472,1771729833179,-500.0,0.00032301,2]
[406317473,1771729833189,-500.0,0.0003235,2]
[406317474,1771729833198,-500.0,0.00032356,2]
[406317475,1771729833207,-500.0,0.00032411,2]
[406317476,1771729833216,-430.22859297,0.00032466,2]
[406317477,1771729833226,-500.0,0.00032469,2]
[406317478,1771729833235,-350.0,0.00032477,2]
[406317479,1771729833244,-300.0,0.000325,11]
[406317480,1771729833256,-600.0,0.000326,11]
[406317481,1771729833266,-900.0,0.000327,11]
[406317482,1771729833275,-350.0,0.00032729,2]
[406317483,1771729833284,-1200.0,0.000328,11]
[406317484,1771729833295,-350.0,0.00032845,2]
[406317485,1771729833304,-1500.0,0.000329,12]
[406317486,1771729833314,-173.74326508,0.00033003,2]
[406317487,1771729833323,-176.43743981,0.00033003,2]
[406317488,1771729833333,-2273.85526659,0.00033003,2]
[406317489,1771729833344,-320.80155844,0.00033003,2]
[406317490,1771729838158,-463.48225875,0.00032405,2]
[406317492,1771729840346,-36.51774125,0.00032405,2]
[406317493,1771729840356,-500.0,0.00032459,2]
[406317494,1771729840364,-500.0,0.00032514,2]
[406317495,1771729840373,-257.93379801,0.00032569,2]
[406317496,1771729840383,-500.0,0.00033002,7]
[406317497,1771729840392,-500.0,0.00033002,7]
[406317498,1771729840401,-387.88274823,0.00033002,7]
[406317499,1771729840417,-114.06871339,0.00033002,7]
[406317500,1771729840429,-187.14188858,0.00033002,7]
[406317501,1771729840583,-312.85811142,0.00033002,7]
[406317502,1771729840593,-180.867459,0.00033002,7]
[406317503,1771729840604,-55.82638667,0.00033002,7]
[406317504,1771729840614,-500.0,0.00033002,7]
[406317505,1771729840623,-500.0,0.00033002,7]
[406317506,1771729840632,-500.0,0.00033002,7]
[406317507,1771729840642,-500.0,0.00033002,7]
[406317508,1771729840651,-500.0,0.00033002,7]
[406317509,1771729840661,-508.72310969,0.00033002,7]
[406317510,1771729840671,-500.0,0.00033002,7]
[406317511,1771729840681,-500.0,0.00033002,7]
[406317512,1771729840690,-500.0,0.00033002,7]
[406317513,1771729840699,-500.0,0.00033002,7]
[406317514,1771729840709,-500.0,0.00033002,7]
[406317515,1771729840719,-500.0,0.00033002,7]
[406317516,1771729840729,-500.0,0.00033002,7]
[406317517,1771729840738,-500.0,0.00033002,7]
[406317518,1771729840747,-500.0,0.00033002,7]
[406317519,1771729840760,-500.0,0.00033002,7]
[406317520,1771729840770,-500.0,0.00033002,7]
[406317521,1771729840779,-500.0,0.00033002,7]
[406317522,1771729840788,-500.0,0.00033002,7]
[406317523,1771729840798,-500.0,0.00033002,7]
[406317524,1771729840809,-500.0,0.00033002,7]
[406317525,1771729840819,-500.0,0.00033002,7]
[406317526,1771729840828,-500.0,0.00033002,7]
[406317527,1771729840838,-5969.90409719,0.00033003,2]
[406317528,1771729840847,-151.88810544,0.00033003,2]
[406317529,1771729840856,-585.8135145,0.00033003,2]
[406317530,1771729840865,-3403.07037352,0.00033003,2]
[406317531,1771729840875,-19446.53297141,0.00033003,2]
[406317532,1771729840887,-606.6000014,0.00033003,2]
[406317533,1771729840898,-6790.13092719,0.00033003,2]
[406317534,1771729840908,-2500.0,0.00033003,2]
[406317535,1771729840917,-1041.3053,0.00033003,2]
[406317536,1771729840927,-500.0,0.00033092,10]
[406317537,1771729840936,-150.0,0.00033092,10]
[406317538,1771729840946,-542.524082,0.00033101,31]
[406317539,1771729840958,-542.524082,0.00033101,31]
[406317540,1771729840969,-542.524082,0.00033101,31]
[406317541,1771729840978,-542.524082,0.00033101,31]
[406317542,1771729840988,-2404.258004,0.00033101,31]
[406317543,1771729840997,-2404.258004,0.00033101,31]
[406317544,1771729841007,-635.623931,0.00033101,7]
[406317545,1771729841017,-2297.72750441,0.00033101,31]
[406317553,1771729843321,-150.0,0.00032355,2]
[406317554,1771729843333,-106.53049959,0.00033101,31]
[406317555,1771729843343,-635.623931,0.00033101,7]
[406317556,1771729843353,-2404.258004,0.00033101,31]
[406317557,1771729843362,-635.623931,0.00033101,7]
[406317558,1771729843371,-635.623931,0.00033101,7]
[406317559,1771729843381,-158.473909,0.00033101,31]
[406317560,1771729843390,-158.473909,0.00033101,31]
[406317561,1771729843399,-158.473909,0.00033101,31]
[406317562,1771729843408,-158.473909,0.00033101,31]
[406317563,1771729843417,-7126.0,0.00033103,5]
[406317564,1771729843426,-542.524082,0.00033103,31]
[406317565,1771729843435,-542.524082,0.00033103,31]
[406317566,1771729843444,-542.524082,0.00033103,31]
[406317567,1771729843453,-542.524082,0.00033103,31]
[406317568,1771729843463,-2404.258004,0.00033103,31]
[406317569,1771729843473,-2404.258004,0.00033103,31]
[406317570,1771729843484,-635.623931,0.00033103,7]
[406317571,1771729843495,-2404.258004,0.00033103,31]
[406317572,1771729843505,-635.623931,0.00033103,7]
[406317573,1771729843516,-2404.258004,0.00033103,31]
[406317574,1771729843524,-635.623931,0.00033103,7]
[406317575,1771729843536,-635.623931,0.00033103,7]
[406317576,1771729843547,-158.473909,0.00033103,31]
[406317577,1771729843558,-158.473909,0.00033103,31]
[406317578,1771729843567,-158.473909,0.00033103,31]
[406317579,1771729843577,-158.473909,0.00033103,31]
[406317580,1771729843588,-487.0,0.00033103,2]
[406317581,1771729843599,-487.0,0.00033103,2]
[406317582,1771729843609,-487.0,0.00033103,2]
[406317583,1771729843619,-487.0,0.00033103,2]
[406317584,1771729843630,-487.0,0.00033103,2]
[406317585,1771729843640,-487.0,0.00033103,2]
[406317586,1771729843651,-487.0,0.00033103,2]
[406317587,1771729843660,-487.0,0.00033103,2]
[406317588,1771729843670,-487.0,0.00033103,2]
[406317589,1771729843681,-487.0,0.00033103,2]
[406317590,1771729843691,-487.0,0.00033103,2]
[406317591,1771729843700,-487.0,0.00033103,2]
[406317592,1771729843709,-487.0,0.00033103,2]
[406317593,1771729843718,-723.05,0.00033103,2]
[406317594,1771729843727,-500.0,0.00033147,10]
[406317595,1771729843736,-150.0,0.00033147,10]
[406317596,1771729843746,-500.0,0.00033202,10]
[406317597,1771729843755,-150.0,0.00033202,10]
[406317598,1771729843764,-150.0,0.00033203,2]
[406317599,1771729843773,-500.0,0.00033203,2]
[406317600,1771729843783,-500.0,0.00033203,2]
[406317601,1771729843793,-500.0,0.00033203,2]
[406317602,1771729843802,-500.0,0.00033203,2]
[406317603,1771729843811,-500.0,0.00033203,2]
[406317604,1771729843821,-200.0,0.00033208,10]
[406317605,1771729843830,-200.0,0.00033209,10]
[406317606,1771729843839,-200.0,0.00033209,10]
[406317607,1771729843848,-173.55054318,0.00033256,10]
[406317608,1771729843858,-150.0,0.00033256,10]
[406317609,1771729843867,-250.90005908,0.00033258,2]
[406317610,1771729843876,-587.38563793,0.00033258,2]
[406317611,1771729843885,-500.0,0.00033258,2]
[406317612,1771729843895,-500.0,0.00033258,2]
[406317613,1771729843904,-500.0,0.00033258,2]
[406317614,1771729843921,-500.0,0.00033258,2]
[406317615,1771729843932,-151.0,0.00033266,31]
[406317616,1771729843941,-151.0,0.00033266,31]
[406317617,1771729843951,-151.0,0.00033266,31]
[406317618,1771729843960,-151.0,0.00033266,31]
[406317619,1771729843969,-151.0,0.00033266,31]
[406317620,1771729843978,-151.0,0.00033266,31]
[406317621,1771729843987,-173.930704,0.00033266,31]
[406317622,1771729843997,-173.930704,0.00033266,31]
[406317623,1771729844007,-173.930704,0.00033266,31]
[406317625,1771729844016,-173.930704,0.00033266,31]
[406317626,1771729844025,-223.034933,0.00033266,14]
[406317627,1771729844034,-223.034933,0.00033266,14]
[406317630,1771729844043,-223.034933,0.00033266,14]
[406317631,1771729844052,-223.034933,0.00033266,14]
[406317632,1771729844061,-218.686418,0.00033266,31]
[406317633,1771729844071,-218.686418,0.00033266,31]
[406317634,1771729844080,-218.686418,0.00033266,31]
[406317635,1771729844090,-218.686418,0.00033266,31]
[406317636,1771729844099,-1753.532738,0.00033266,31]
[406317637,1771729844108,-1753.532738,0.00033266,31]
[406317638,1771729844118,-1753.532738,0.00033266,31]
[406317639,1771729844127,-1753.532738,0.00033266,31]
[406317640,1771729844136,-204.555036,0.00033266,31]
[406317641,1771729844145,-204.555036,0.00033266,31]
[406317642,1771729844154,-122.3937946,0.00033266,31]
[406317680,1771729987469,29.88,3.97e-06,30]
[406317681,1771729987505,300.0,3.97e-06,30]
[406317682,1771729987531,170.12,3.97e-06,30]
[406317683,1771729987726,23.63766452,3.97e-06,30]
[406317684,1771729987750,476.36233548,3.97e-06,30]
[406317685,1771729987965,500.0,3.97e-06,30]
[406317686,1771729988223,500.0,3.97e-06,30]
[406317690,1771730579507,150.44709595,0.000137,2]
[406317696,1771730812062,-500.84581575,0.00015173,2]
[406317697,1771730812082,-501.06256891,0.00015173,2]
[406317698,1771730812102,-122998.09161534,0.00018,2]
[406317700,1771730881899,150.44709594,0.000137,2]
[406317712,1771731032119,-4887.31,0.000162,5]
[406317713,1771731032128,-900.0,0.000162,2]
[406317714,1771731032137,-900.0,0.0001676,30]
[406317715,1771731032146,-500.0,0.00017999,2]
[406317716,1771731032156,-500.0,0.00017999,2]
[406317717,1771731032165,-500.0,0.00017999,2]
[406317718,1771731032174,-500.0,0.00017999,2]
[406317719,1771731032183,-500.0,0.00017999,2]
[406317720,1771731032192,-250.87231097,0.00017999,2]
[406317721,1771731032201,-500.0,0.00017999,2]
[406317722,1771731032211,-500.0,0.00017999,2]
[406317723,1771731032220,-500.0,0.00017999,2]
[406317724,1771731032230,-486.07144696,0.00017999,2]
[406317725,1771731032239,-500.0,0.00017999,2]
[406317726,1771731032249,-50590.14426473,0.00018,2]
[406317727,1771731032273,-881.86849656,0.00018,2]
[406317728,1771731032284,-4447.10351561,0.00018,2]
[406317729,1771731032296,-753.09618127,0.00018,2]
[406317730,1771731032308,-1387.20657822,0.00018,2]
[406317731,1771731032343,-610.745,0.00018,2]
[406317734,1771731038224,-836.54867868,0.00018,2]
[406317735,1771731038236,-1514.74391106,0.00018,2]
[406317736,1771731038467,-558.38385669,0.00018,2]
[406317737,1771731038478,-926.77389262,0.00018,2]
[406317738,1771731038494,-401.616215,0.00018,2]
[406317740,1771731038512,-236937.36186757,0.00018,2]
[406317746,1771731040347,-3950.60752974,0.00018,2]
[406317747,1771731040558,-86830.96435737,0.00018,2]
[406317748,1771731040567,-1730.61010233,0.00019938,2]
[406317749,1771731040583,-4703.4085264,0.00020038,2]
[406317750,1771731040596,-3907.5910737,0.00020038,2]
[406317751,1771731040605,-384.1042292,0.00020038,2]
[406317752,1771731040615,-3062.76333615,0.000218,2]
[406317753,1771731040624,-164.05,0.00022,2]
[406317754,1771731040633,-384.1042292,0.00022088,2]
[406317755,1771731040643,-1730.61010228,0.00022427,2]
[406317756,1771731040653,-1049.4722977,0.00023064,2]
[406317757,1771731040663,-871.901422,0.00023096,2]
[406317758,1771731040672,-234.1689218,0.00023739,2]
[406317759,1771731040683,-194.5475039,0.00023778,2]
[406317760,1771731040693,-3062.76333613,0.00023948,2]
[406317761,1771731040702,-384.1042292,0.00024138,2]
[406317762,1771731040711,-1730.61010228,0.00024916,2]
[406317763,1771731040721,-3062.76333613,0.00026096,2]
[406317764,1771731040730,-384.1042292,0.00026188,2]
[406317765,1771731040739,-1730.61010228,0.00027405,2]
[406317766,1771731040748,-164.0,0.00027585,30]
[406317767,1771731040757,-3062.76333613,0.00028244,2]
[406317768,1771731040768,-3240.0,0.00029299,2]
[406317769,1771731040780,-166.29,0.00029641,2]
[406317770,1771731040790,-1730.61010228,0.00029894,2]
[406317771,1771731040800,-3062.76333613,0.00030392,2]
[406317772,1771731040809,-200.0,0.00030673,25]
[406317773,1771731040820,-166.66,0.00031305,2]
[406317774,1771731040830,-154.0,0.00031721,30]
[406317775,1771731040843,-2038.3,0.00031774,2]
[406317776,1771731040853,-4261.46,0.00031884,2]
[406317777,1771731040862,-204.7,0.00032002,30]
[406317778,1771731040872,-2000.0,0.00032031,2]
[406317779,1771731040883,-8910.36,0.0003205,2]
[406317780,1771731040892,-2187.85,0.00032211,2]
[406317781,1771731040901,-1500.0,0.00032367,120]
[406317782,1771731040911,-1730.61010228,0.00032382,2]
[406317783,1771731040921,-1852.42,0.00032383,2]
[406317784,1771731040930,-1000.0,0.00032386,2]
[406317785,1771731040940,-200.0,0.00032391,2]
[406317786,1771731040949,-1000.0,0.00032393,20]
[406317787,1771731040958,-675.17052645,0.00032441,120]
[406317788,1771731040967,-1768.22829292,0.00032441,120]
[406317789,1771731040979,-451.22391651,0.00032441,120]
[406317790,1771731040989,-160.56,0.00032511,2]
[406317791,1771731040998,-1289.58,0.00032511,2]
[406317792,1771731041008,-3062.76333613,0.00032541,2]
[406317793,1771731041017,-2043.56777696,0.00032579,2]
[406317794,1771731041026,-166.66,0.00032597,2]
[406317795,1771731041035,-586.5339089,0.0003262,2]
[406317796,1771731041045,-300.0,0.00032702,10]
[406317797,1771731041054,-666.0,0.00032702,10]
[406317798,1771731041063,-159.58835013,0.00032703,2]
[406317799,1771731041073,-151.0,0.00032703,7]
[406317800,1771731041082,-151.0,0.00032703,7]
[406317802,1771731041092,-442.14403666,0.00032703,2]
[406317803,1771731041101,-151.88810542,0.00032703,2]
[406317804,1771731041111,-488.17792875,0.00032703,2]
[406317805,1771731041120,-325.514449,0.00032703,7]
[406317806,1771731041130,-325.514449,0.00032703,7]
[406317807,1771731041139,-325.514449,0.00032703,7]
[406317808,1771731041148,-325.514449,0.00032703,7]
[406317809,1771731041158,-5709.70728148,0.00032703,2]
[406317810,1771731041171,-151.0,0.00032703,7]
[406317811,1771731041180,-381.374358,0.00032703,7]
[406317812,1771731041190,-381.374358,0.00032703,7]
[406317813,1771731041200,-381.374358,0.00032703,7]
[406317814,1771731041209,-381.374358,0.00032703,7]
[406317815,1771731041219,-1442.554802,0.00032703,7]
[406317816,1771731041229,-1442.554802,0.00032703,7]
[406317817,1771731041238,-1442.554802,0.00032703,7]
[406317818,1771731041248,-1442.554802,0.00032703,7]
[406317819,1771731041258,-151.0,0.00032703,7]
[406317820,1771731041267,-26330.4007084,0.00032703,2]
[406317821,1771731041320,-132.84134792,0.00032703,2]
[406317822,1771731041331,-553.4532186,0.00032703,2]
[406317827,1771731043399,-2933.58524127,0.00032703,2]
[406317828,1771731043410,-4244.85898784,0.00032703,2]
[406317829,1771731043421,-10001.29997862,0.00032703,2]
[406317835,1771731046056,-2020.869312,0.00032703,2]
[406317836,1771731046111,-50161.24702547,0.00032703,2]
[406317837,1771731046289,-2911.39514129,0.00032703,2]
[406317838,1771731046329,-827.2600008,0.00032703,2]
[406317839,1771731046385,-5859.80000033,0.00032703,2]
[406317894,1771731429051,225.48,0.00012136,2]
[406317895,1771731430000,161.05,0.00013315,2]
[406317900,1771732163020,-1000.0,0.00021,10]
[406317901,1771732231262,-250.0,0.0002125,2]
[406317902,1771732231273,-750.0,0.000215,5]
[406317912,1771732237577,-250.0,0.000215,5]
[406317913,1771732237587,-2006.63183014,0.00022,2]
[406317914,1771732237596,-250.0,0.000231,2]
[406317915,1771732237606,-256.55943822,0.00024742,2]
[406317916,1771732237616,-1016.7,0.00028974,2]
[406317917,1771732237625,-166.66,0.00030235,30]
[406317919,1771732237635,-53.44873164,0.00030872,30]
[406317931,1771732239483,-113.21126836,0.00030872,30]
[406317932,1771732239492,-210.62173932,0.00031388,120]
[406317933,1771732239504,-467.59698829,0.00031388,120]
[406317934,1771732239515,-325.50127239,0.00031388,120]
[406317935,1771732239525,-14.85356761,0.0003139,2]
[406317936,1771732239539,-185.14643239,0.0003139,2]
[406317937,1771732239549,-175.87,0.00031434,2]
[406317938,1771732239559,-166.66,0.00031509,30]
[406317939,1771732239568,-254.90033369,0.00031715,3]
[406317940,1771732239591,-47.09966631,0.00031715,3]
[406317941,1771732239600,-385.4641231,0.00031715,2]
[406317942,1771732239802,-14.5358769,0.00031715,2]
[406317943,1771732239811,-5000.0,0.00031716,2]
[406317944,1771732239821,-586.67632043,0.00031732,2]
[406317945,1771732239829,-150.0,0.00032092,2]
[406317946,1771732239839,-350.0,0.00032138,2]
[406317947,1771732239849,-166.66,0.00032145,30]
[406317948,1771732239858,-692.24404093,0.00032403,2]
[406317949,1771732239868,-391.02260594,0.00032403,2]
[406317950,1771732239878,-502.86321793,0.0003247,30]
[406317951,1771732239887,-300.0,0.00032502,10]
[406317952,1771732239898,-5000.0,0.00032503,2]
[406317953,1771732239910,-179.30419465,0.00032583,2]
[406317954,1771732239919,-151.0,0.00032583,2]
[406317955,1771732239929,-500.0,0.00032583,2]
[406317956,1771732239939,-500.0,0.00032583,2]
[406317957,1771732239949,-500.0,0.00032583,2]
[406317958,1771732239958,-488.40276273,0.00032583,2]
[406317962,1771732242515,-11.59723727,0.00032583,2]
[406317963,1771732242525,-304.62300173,0.00032583,2]
[406317964,1771732242569,-195.37699827,0.00032583,2]
[406317965,1771732242578,-131.98828773,0.00032583,2]
[406317966,1771732242648,-0.00470827,0.00032583,2]
[406317967,1771732242663,-368.007004,0.00032583,2]
[406317968,1771732242676,-138.4089608,0.00032583,2]
[406317973,1771732245350,-560.80350166,0.00032503,2]
[406317974,1771732245360,-361.5910392,0.00032583,2]
[406317975,1771732245370,-689.56118944,0.00032583,2]
[406317976,1771732245509,-31.56646591,0.00032583,2]
[406317977,1771732245518,-500.0,0.00032583,2]
[406317978,1771732245527,-500.0,0.00032583,2]
[406317979,1771732245536,-500.0,0.00032583,2]
[406317980,1771732245546,-200.40126409,0.00032583,2]
[406317991,1771733271365,-1295.835146,0.00014907,2]
[406317992,1771733271391,-725.63548733,0.00014982,2]
[406317996,1771733298533,-202.62134724,0.00015058,2]
[406317997,1771733298554,-1200.0,0.00015172,2]
[406317998,1771733298574,-300.0,0.00015172,2]
[406317999,1771733298604,-300.0,0.00015172,2]
[406318000,1771733298624,-725.63548733,0.00015172,2]
[406318001,1771733298644,-571.87903258,0.00015173,2]
[406318002,1771733298663,-509.58593653,0.00015173,2]
[406318003,1771733298682,-500.0,0.00015173,2]
[406318004,1771733298702,-500.0,0.00015173,2]
[406318005,1771733298722,-725.63548733,0.00015173,2]
[406318006,1771733298742,-500.0,0.00015173,2]
[406318007,1771733298763,-501.81785333,0.00015173,2]
[406318008,1771733298784,-500.0,0.00015173,2]
[406318009,1771733298806,-500.0,0.00015173,2]
[406318010,1771733298826,-500.0,0.00015173,2]
[406318011,1771733298850,-500.0,0.00015173,2]
[406318012,1771733298871,-546.29021822,0.00015173,2]
[406318013,1771733298891,-500.0,0.00015173,2]
[406318014,1771733298912,-500.0,0.00015173,2]
[406318015,1771733298932,-501.22639651,0.00015173,2]
[406318016,1771733298951,-500.0,0.00015173,2]
[406318017,1771733298972,-500.0,0.00015173,2]
[406318018,1771733298992,-500.0,0.00015173,2]
[406318019,1771733299012,-500.0,0.00015173,2]
[406318020,1771733299032,-500.0,0.00015173,2]
[406318021,1771733299651,500.0,0.00015173,2]
[406318022,1771733299686,500.0,0.00015173,2]
[406318024,1771733350216,297.37865276,0.00015173,2]
[406318025,1771733350243,131.28126628,0.00015173,2]
[406318028,1771733407707,500.0,0.00015173,2]
[406318029,1771733408047,500.0,0.00015173,2]
[406318033,1771733422510,500.0,0.00015173,2]
[406318034,1771733424166,500.0,0.00015173,2]
[406318036,1771733425004,500.0,0.00015173,2]
[406318037,1771733425180,500.0,0.00015173,2]
[406318042,1771733431454,-300.0,0.0001572,2]
[406318043,1771733431464,-232.82685681,0.0001572,2]
[406318044,1771733431475,-67.17314319,0.0001572,2]
[406318045,1771733431484,-1200.0,0.0001572,2]
[406318046,1771733431494,-228.94477578,0.00015721,2]
[406318047,1771733431503,-1007.34338163,0.00015721,2]